[Event "Titled Tuesday Blitz January 17 Early 2023"]
[White "Babazada, Khazar"]
[Black "Le, Tuan Minh"]
[WhiteFideId "13413554"]
[BlackFideId "12401153"]
[WhiteElo "2474"]
[BlackElo "2542"]
[Result "1-0"]
[Round "09"]
[TimeControl "180+2"]
[Date "2023.01.17"]
[WhiteClock "0:01:14"]
[BlackClock "0:00:11"]

1. e4 {[%clk 0:03:00]}  c5 {[%clk 0:02:56]} 2. Nf3 {[%clk 0:03:00]}  Nf6 {[%clk 0:02:56]} 3. Nc3 {[%clk 0:03:00]}  d5 {[%clk 0:02:56]} 4. exd5 {[%clk 0:03:01]}  Nxd5 {[%clk 0:02:57]} 5. Bb5+ {[%clk 0:03:01]}  Bd7 {[%clk 0:02:57]} 6. O-O {[%clk 0:02:54]}  Bxb5 {[%clk 0:02:44]} 7. Nxb5 {[%clk 0:02:54]}  Qd7 {[%clk 0:02:38]} 8. c4 {[%clk 0:02:53]}  a6 {[%clk 0:01:46]} 9. Ne5 {[%clk 0:02:52]}  Qf5 {[%clk 0:01:44]} 10. Qa4 {[%clk 0:02:44]}  Nd7 {[%clk 0:01:11]} 11. d4 {[%clk 0:01:50]}  N5b6 {[%clk 0:01:06]} 12. Nc7+ {[%clk 0:01:30]}  Kd8 {[%clk 0:01:06]} 13. Qa5 {[%clk 0:01:31]}  Nxe5 {[%clk 0:00:15]} 14. Qxb6 {[%clk 0:01:25]}  Nxc4 {[%clk 0:00:11]} 15. Ne6+ {[%clk 0:01:25]}  Kd7 {[%clk 0:00:09]} 16. Nxc5+ {[%clk 0:01:21]}  Ke8 {[%clk 0:00:10]} 17. Qxb7 {[%clk 0:01:21]}  Rc8 {[%clk 0:00:10]} 18. Qxa6 {[%clk 0:01:15]}  Nd6 {[%clk 0:00:11]} 19. Qa4+ {[%clk 0:01:15]}  Kd8 {[%clk 0:00:11]} 20. Bd2 {[%clk 0:01:15]}  e6 {[%clk 0:00:11]} 21. Qd7# {[%clk 0:01:14]} 1-0


[Site "https://www.chess.com"]

[Event "Titled Tuesday Blitz January 17 Early 2023"]
[White "Bluebaum, Matthias"]
[Black "Kravtsiv, Martyn"]
[WhiteFideId "24651516"]
[BlackFideId "14113147"]
[WhiteElo "2669"]
[BlackElo "2598"]
[Result "1-0"]
[Round "09"]
[TimeControl "180+2"]
[Date "2023.01.17"]
[WhiteClock "0:01:22"]
[BlackClock "0:00:26"]

1. d4 {[%clk 0:03:00]}  d5 {[%clk 0:03:00]} 2. c4 {[%clk 0:03:01]}  e6 {[%clk 0:03:01]} 3. Nc3 {[%clk 0:03:01]}  Nf6 {[%clk 0:03:00]} 4. cxd5 {[%clk 0:03:01]}  exd5 {[%clk 0:03:01]} 5. Bf4 {[%clk 0:03:01]}  c6 {[%clk 0:02:54]} 6. e3 {[%clk 0:03:02]}  Bd6 {[%clk 0:02:54]} 7. Bxd6 {[%clk 0:03:02]}  Qxd6 {[%clk 0:02:53]} 8. Bd3 {[%clk 0:03:02]}  O-O {[%clk 0:02:49]} 9. Nge2 {[%clk 0:03:03]}  Re8 {[%clk 0:02:48]} 10. Qd2 {[%clk 0:03:03]}  Nbd7 {[%clk 0:02:38]} 11. f3 {[%clk 0:03:03]}  Nb6 {[%clk 0:02:30]} 12. e4 {[%clk 0:03:00]}  dxe4 {[%clk 0:02:24]} 13. fxe4 {[%clk 0:03:01]}  Qd8 {[%clk 0:02:05]} 14. O-O {[%clk 0:02:53]}  Bg4 {[%clk 0:02:02]} 15. e5 {[%clk 0:02:51]}  Bxe2 {[%clk 0:02:02]} 16. Nxe2 {[%clk 0:02:49]}  Nfd5 {[%clk 0:02:00]} 17. Ng3 {[%clk 0:02:45]}  Ne7 {[%clk 0:01:40]} 18. Qf4 {[%clk 0:02:36]}  Rf8 {[%clk 0:01:39]} 19. Rad1 {[%clk 0:02:18]}  Nbd5 {[%clk 0:01:34]} 20. Qf2 {[%clk 0:02:10]}  f5 {[%clk 0:01:32]} 21. Nxf5 {[%clk 0:02:04]}  Nxf5 {[%clk 0:01:21]} 22. Bxf5 {[%clk 0:02:05]}  Qe7 {[%clk 0:01:21]} 23. Qg3 {[%clk 0:02:02]}  Rad8 {[%clk 0:01:14]} 24. h4 {[%clk 0:01:45]}  Kh8 {[%clk 0:01:12]} 25. h5 {[%clk 0:01:45]}  Nc7 {[%clk 0:01:08]} 26. Qg4 {[%clk 0:01:35]}  c5 {[%clk 0:01:04]} 27. Bb1 {[%clk 0:01:27]}  Rxf1+ {[%clk 0:00:58]} 28. Rxf1 {[%clk 0:01:26]}  cxd4 {[%clk 0:00:38]} 29. Qe4 {[%clk 0:01:26]}  g6 {[%clk 0:00:29]} 30. hxg6 {[%clk 0:01:27]}  Rf8 {[%clk 0:00:26]} 31. g7+ {[%clk 0:01:22]} 1-0


[Site "https://www.chess.com"]

[Event "Titled Tuesday Blitz January 17 Early 2023"]
[White "Vokhidov, Shamsiddin"]
[Black "Bernadskiy, Vitaliy"]
[WhiteFideId "14204223"]
[BlackFideId "14100371"]
[WhiteElo "2586"]
[BlackElo "2592"]
[Result "0-1"]
[Round "09"]
[TimeControl "180+2"]
[Date "2023.01.17"]
[WhiteClock "0:00:11"]
[BlackClock "0:00:06"]

1. e4 {[%clk 0:03:00]}  c5 {[%clk 0:02:59]} 2. Nf3 {[%clk 0:03:00]}  Nc6 {[%clk 0:02:59]} 3. Bb5 {[%clk 0:03:00]}  g6 {[%clk 0:02:59]} 4. Bxc6 {[%clk 0:03:00]}  dxc6 {[%clk 0:03:00]} 5. d3 {[%clk 0:03:00]}  Bg7 {[%clk 0:03:00]} 6. h3 {[%clk 0:03:00]}  Qc7 {[%clk 0:03:00]} 7. a4 {[%clk 0:03:00]}  a5 {[%clk 0:02:59]} 8. Na3 {[%clk 0:02:51]}  b6 {[%clk 0:02:57]} 9. Nc4 {[%clk 0:02:49]}  Be6 {[%clk 0:02:54]} 10. O-O {[%clk 0:02:47]}  Bxc4 {[%clk 0:02:30]} 11. dxc4 {[%clk 0:02:48]}  Rd8 {[%clk 0:02:27]} 12. Qe2 {[%clk 0:02:46]}  e5 {[%clk 0:02:27]} 13. Rd1 {[%clk 0:02:17]}  Rxd1+ {[%clk 0:02:26]} 14. Qxd1 {[%clk 0:02:18]}  Nf6 {[%clk 0:02:26]} 15. Qe2 {[%clk 0:02:14]}  O-O {[%clk 0:02:26]} 16. Bd2 {[%clk 0:02:10]}  Rd8 {[%clk 0:02:22]} 17. Bc3 {[%clk 0:02:11]}  Ne8 {[%clk 0:02:16]} 18. Rd1 {[%clk 0:02:09]}  Rxd1+ {[%clk 0:02:15]} 19. Qxd1 {[%clk 0:02:10]}  Qd6 {[%clk 0:02:13]} 20. Qe2 {[%clk 0:01:43]}  Nc7 {[%clk 0:02:10]} 21. Bd2 {[%clk 0:01:42]}  Ne6 {[%clk 0:02:05]} 22. c3 {[%clk 0:01:43]}  h6 {[%clk 0:02:01]} 23. Bc1 {[%clk 0:01:40]}  Kf8 {[%clk 0:01:59]} 24. g3 {[%clk 0:01:40]}  Kg8 {[%clk 0:01:48]} 25. Kg2 {[%clk 0:01:39]}  Kf8 {[%clk 0:01:48]} 26. h4 {[%clk 0:01:37]}  h5 {[%clk 0:01:48]} 27. Ne1 {[%clk 0:01:35]}  Qd7 {[%clk 0:01:43]} 28. Nd3 {[%clk 0:01:33]}  Nc7 {[%clk 0:01:41]} 29. Be3 {[%clk 0:01:29]}  Qe6 {[%clk 0:01:37]} 30. b3 {[%clk 0:01:06]}  Ne8 {[%clk 0:01:35]} 31. f3 {[%clk 0:00:54]}  Nd6 {[%clk 0:01:34]} 32. Nf2 {[%clk 0:00:51]}  Ke7 {[%clk 0:01:29]} 33. Qd3 {[%clk 0:00:49]}  Qd7 {[%clk 0:01:26]} 34. Nd1 {[%clk 0:00:47]}  Ne8 {[%clk 0:01:23]} 35. Qc2 {[%clk 0:00:46]}  Nd6 {[%clk 0:01:21]} 36. Qd3 {[%clk 0:00:46]}  Ne8 {[%clk 0:01:21]} 37. Qe2 {[%clk 0:00:47]}  Nd6 {[%clk 0:01:21]} 38. b4 {[%clk 0:00:44]}  axb4 {[%clk 0:01:06]} 39. cxb4 {[%clk 0:00:45]}  cxb4 {[%clk 0:01:00]} 40. Bxb6 {[%clk 0:00:46]}  Qe6 {[%clk 0:00:51]} 41. Bc5 {[%clk 0:00:45]}  Kd7 {[%clk 0:00:50]} 42. Nb2 {[%clk 0:00:44]}  f5 {[%clk 0:00:31]} 43. Bxb4 {[%clk 0:00:43]}  fxe4 {[%clk 0:00:29]} 44. fxe4 {[%clk 0:00:43]}  Bh6 {[%clk 0:00:21]} 45. Qd1 {[%clk 0:00:39]}  Be3 {[%clk 0:00:14]} 46. Qd3 {[%clk 0:00:22]}  Bd4 {[%clk 0:00:14]} 47. Bxd6 {[%clk 0:00:18]}  Qxd6 {[%clk 0:00:12]} 48. Nd1 {[%clk 0:00:17]}  Qb4 {[%clk 0:00:12]} 49. Ne3 {[%clk 0:00:11]}  Qxa4 {[%clk 0:00:12]} 50. Nc2 {[%clk 0:00:11]}  c5 {[%clk 0:00:10]} 51. Ne1 {[%clk 0:00:11]}  Qa2+ {[%clk 0:00:10]} 52. Kh3 {[%clk 0:00:10]}  Qf2 {[%clk 0:00:09]} 53. Nf3 {[%clk 0:00:11]}  Kd6 {[%clk 0:00:07]} 54. Qb3 {[%clk 0:00:10]}  Qf1+ {[%clk 0:00:07]} 55. Kh2 {[%clk 0:00:11]}  Qe2+ {[%clk 0:00:06]} 56. Kh3 {[%clk 0:00:10]}  Qf1+ {[%clk 0:00:06]} 57. Kh2 {[%clk 0:00:11]}  Qf2+ {[%clk 0:00:06]} 0-1


[Site "https://www.chess.com"]

[Event "Titled Tuesday Blitz January 17 Early 2023"]
[White "Dominguez Perez, Leinier"]
[Black "Deac, Bogdan-Daniel"]
[WhiteFideId "3503240"]
[BlackFideId "1226380"]
[WhiteElo "2739"]
[BlackElo "2700"]
[Result "1-0"]
[Round "09"]
[TimeControl "180+2"]
[Date "2023.01.17"]
[WhiteClock "0:00:10"]
[BlackClock "0:00:02"]

1. d4 {[%clk 0:03:00]}  Nf6 {[%clk 0:02:56]} 2. Nf3 {[%clk 0:03:01]}  d5 {[%clk 0:02:56]} 3. e3 {[%clk 0:03:01]}  Bf5 {[%clk 0:02:56]} 4. Nbd2 {[%clk 0:02:56]}  e6 {[%clk 0:02:55]} 5. b3 {[%clk 0:02:53]}  c5 {[%clk 0:02:51]} 6. Bb2 {[%clk 0:02:52]}  Nc6 {[%clk 0:02:51]} 7. Be2 {[%clk 0:02:44]}  Qc7 {[%clk 0:02:51]} 8. O-O {[%clk 0:02:30]}  Rd8 {[%clk 0:02:50]} 9. c4 {[%clk 0:02:27]}  cxd4 {[%clk 0:02:49]} 10. Nxd4 {[%clk 0:02:27]}  Nxd4 {[%clk 0:02:50]} 11. Bxd4 {[%clk 0:02:27]}  Bd6 {[%clk 0:02:32]} 12. cxd5 {[%clk 0:02:07]}  Bxh2+ {[%clk 0:01:52]} 13. Kh1 {[%clk 0:02:07]}  Be5 {[%clk 0:01:53]} 14. Rc1 {[%clk 0:02:07]}  Qb8 {[%clk 0:01:50]} 15. Bb5+ {[%clk 0:01:41]}  Ke7 {[%clk 0:01:13]} 16. Bxe5 {[%clk 0:01:14]}  Qxe5 {[%clk 0:01:12]} 17. Nf3 {[%clk 0:01:15]}  Qb8 {[%clk 0:00:57]} 18. Qd4 {[%clk 0:01:14]}  Rxd5 {[%clk 0:00:56]} 19. Qb4+ {[%clk 0:01:13]}  Rd6 {[%clk 0:00:54]} 20. Ne5 {[%clk 0:00:56]}  Nd5 {[%clk 0:00:32]} 21. Qa3 {[%clk 0:00:55]}  Nb6 {[%clk 0:00:30]} 22. Rfd1 {[%clk 0:00:41]}  Rd8 {[%clk 0:00:25]} 23. Rxd6 {[%clk 0:00:41]}  Rxd6 {[%clk 0:00:24]} 24. Rd1 {[%clk 0:00:40]}  f6 {[%clk 0:00:06]} 25. Nf7 {[%clk 0:00:39]}  Kxf7 {[%clk 0:00:07]} 26. Qxd6 {[%clk 0:00:39]}  Qxd6 {[%clk 0:00:07]} 27. Rxd6 {[%clk 0:00:38]}  Ke7 {[%clk 0:00:08]} 28. Rd2 {[%clk 0:00:34]}  e5 {[%clk 0:00:08]} 29. Bd3 {[%clk 0:00:24]}  e4 {[%clk 0:00:09]} 30. Be2 {[%clk 0:00:19]}  Be6 {[%clk 0:00:08]} 31. g4 {[%clk 0:00:10]}  f5 {[%clk 0:00:06]} 32. gxf5 {[%clk 0:00:10]}  Bxf5 {[%clk 0:00:07]} 33. Kg2 {[%clk 0:00:10]}  g5 {[%clk 0:00:07]} 34. Kg3 {[%clk 0:00:11]}  Be6 {[%clk 0:00:05]} 35. Rd1 {[%clk 0:00:11]}  Bf7 {[%clk 0:00:03]} 36. Rd4 {[%clk 0:00:11]}  Bg6 {[%clk 0:00:03]} 37. Bc4 {[%clk 0:00:11]}  h5 {[%clk 0:00:02]} 38. Bd5 {[%clk 0:00:10]}  Nxd5 {[%clk 0:00:02]} 39. Rxd5 {[%clk 0:00:10]}  Kf6 {[%clk 0:00:03]} 40. Rd7 {[%clk 0:00:09]}  h4+ {[%clk 0:00:03]} 41. Kg2 {[%clk 0:00:09]}  b5 {[%clk 0:00:02]} 42. Rxa7 {[%clk 0:00:09]}  Bh5 {[%clk 0:00:03]} 43. a4 {[%clk 0:00:09]}  bxa4 {[%clk 0:00:02]} 44. bxa4 {[%clk 0:00:10]} 1-0


[Site "https://www.chess.com"]

[Event "Titled Tuesday Blitz January 17 Early 2023"]
[White "Sadhwani, Raunak"]
[Black "Zierk, Steven"]
[WhiteFideId "35093487"]
[BlackFideId "2034255"]
[WhiteElo "2627"]
[BlackElo "2488"]
[Result "0-1"]
[Round "09"]
[TimeControl "180+2"]
[Date "2023.01.17"]
[WhiteClock "0:00:01"]
[BlackClock "0:00:07"]

1. e4 {[%clk 0:03:00]}  e6 {[%clk 0:03:00]} 2. d4 {[%clk 0:03:00]}  d5 {[%clk 0:03:00]} 3. Nc3 {[%clk 0:03:00]}  Bb4 {[%clk 0:03:00]} 4. e5 {[%clk 0:02:59]}  c5 {[%clk 0:03:00]} 5. a3 {[%clk 0:02:59]}  Bxc3+ {[%clk 0:03:01]} 6. bxc3 {[%clk 0:03:00]}  Qa5 {[%clk 0:03:01]} 7. Bd2 {[%clk 0:02:58]}  Qa4 {[%clk 0:03:02]} 8. Qg4 {[%clk 0:02:58]}  Kf8 {[%clk 0:03:02]} 9. Bd3 {[%clk 0:02:50]}  b6 {[%clk 0:02:56]} 10. c4 {[%clk 0:02:35]}  Ne7 {[%clk 0:02:42]} 11. Nf3 {[%clk 0:02:30]}  Nbc6 {[%clk 0:02:14]} 12. dxc5 {[%clk 0:02:15]}  Ba6 {[%clk 0:01:58]} 13. Qf4 {[%clk 0:01:56]}  h6 {[%clk 0:01:55]} 14. O-O {[%clk 0:01:37]}  Bxc4 {[%clk 0:01:49]} 15. Be3 {[%clk 0:01:34]}  b5 {[%clk 0:01:42]} 16. Rfb1 {[%clk 0:01:24]}  Rb8 {[%clk 0:01:19]} 17. h4 {[%clk 0:00:56]}  Qa6 {[%clk 0:00:35]} 18. a4 {[%clk 0:00:48]}  b4 {[%clk 0:00:33]} 19. Rd1 {[%clk 0:00:29]}  Bxd3 {[%clk 0:00:28]} 20. cxd3 {[%clk 0:00:30]}  Nf5 {[%clk 0:00:24]} 21. g4 {[%clk 0:00:29]}  Nxe3 {[%clk 0:00:19]} 22. fxe3 {[%clk 0:00:30]}  Ke7 {[%clk 0:00:19]} 23. h5 {[%clk 0:00:23]}  b3 {[%clk 0:00:18]} 24. g5 {[%clk 0:00:18]}  hxg5 {[%clk 0:00:16]} 25. Qxg5+ {[%clk 0:00:19]}  Kf8 {[%clk 0:00:16]} 26. Rab1 {[%clk 0:00:15]}  Qxa4 {[%clk 0:00:15]} 27. Rf1 {[%clk 0:00:14]}  b2 {[%clk 0:00:13]} 28. Rf2 {[%clk 0:00:11]}  Qa2 {[%clk 0:00:12]} 29. Nd2 {[%clk 0:00:08]}  Rb7 {[%clk 0:00:11]} 30. Kh2 {[%clk 0:00:06]}  Qa3 {[%clk 0:00:11]} 31. Rg1 {[%clk 0:00:06]}  Rh7 {[%clk 0:00:10]} 32. Qg6 {[%clk 0:00:06]}  Kg8 {[%clk 0:00:09]} 33. Qg5 {[%clk 0:00:02]}  Qxd3 {[%clk 0:00:10]} 34. Nf3 {[%clk 0:00:02]}  b1=Q {[%clk 0:00:09]} 35. Rxb1 {[%clk 0:00:02]}  Rxb1 {[%clk 0:00:10]} 36. Nd4 {[%clk 0:00:02]}  Qe4 {[%clk 0:00:09]} 37. Rg2 {[%clk 0:00:01]}  Qxe5+ {[%clk 0:00:07]} 0-1


[Site "https://www.chess.com"]

[Event "Titled Tuesday Blitz January 17 Early 2023"]
[White "Puranik, Abhimanyu"]
[Black "Mitrabha, Guha"]
[WhiteFideId "5061245"]
[BlackFideId "5057000"]
[WhiteElo "2613"]
[BlackElo "2507"]
[Result "0-1"]
[Round "09"]
[TimeControl "180+2"]
[Date "2023.01.17"]
[WhiteClock "0:00:01"]
[BlackClock "0:00:12"]

1. c4 {[%clk 0:03:00]}  Nf6 {[%clk 0:02:39]} 2. g3 {[%clk 0:02:58]}  g6 {[%clk 0:02:38]} 3. Bg2 {[%clk 0:02:58]}  Bg7 {[%clk 0:02:39]} 4. Nc3 {[%clk 0:02:56]}  O-O {[%clk 0:02:40]} 5. Nf3 {[%clk 0:02:55]}  c5 {[%clk 0:02:38]} 6. O-O {[%clk 0:02:54]}  Nc6 {[%clk 0:02:31]} 7. d4 {[%clk 0:02:54]}  cxd4 {[%clk 0:02:28]} 8. Nxd4 {[%clk 0:02:54]}  Qa5 {[%clk 0:02:26]} 9. e3 {[%clk 0:02:55]}  Qh5 {[%clk 0:02:26]} 10. Qxh5 {[%clk 0:02:52]}  Nxh5 {[%clk 0:02:27]} 11. Rd1 {[%clk 0:02:49]}  Nf6 {[%clk 0:02:19]} 12. b3 {[%clk 0:02:43]}  Rb8 {[%clk 0:02:04]} 13. Ba3 {[%clk 0:02:33]}  Re8 {[%clk 0:02:01]} 14. Rac1 {[%clk 0:02:32]}  a6 {[%clk 0:01:57]} 15. c5 {[%clk 0:02:16]}  Nxd4 {[%clk 0:01:35]} 16. exd4 {[%clk 0:02:15]}  b6 {[%clk 0:01:33]} 17. cxb6 {[%clk 0:01:59]}  Rxb6 {[%clk 0:01:32]} 18. Bc5 {[%clk 0:01:59]}  Re6 {[%clk 0:01:24]} 19. d5 {[%clk 0:01:33]}  Re5 {[%clk 0:01:21]} 20. Bd4 {[%clk 0:01:32]}  Rh5 {[%clk 0:01:17]} 21. d6 {[%clk 0:01:31]}  exd6 {[%clk 0:01:04]} 22. Bxf6 {[%clk 0:01:30]}  Bxf6 {[%clk 0:01:04]} 23. Ne4 {[%clk 0:01:26]}  Be7 {[%clk 0:00:59]} 24. Nxd6 {[%clk 0:01:00]}  Bxd6 {[%clk 0:00:55]} 25. Rxd6 {[%clk 0:01:01]}  Kg7 {[%clk 0:00:54]} 26. Rb6 {[%clk 0:00:43]}  Rhe5 {[%clk 0:00:53]} 27. Rb8 {[%clk 0:00:38]}  Re1+ {[%clk 0:00:53]} 28. Rxe1 {[%clk 0:00:37]}  Rxe1+ {[%clk 0:00:54]} 29. Bf1 {[%clk 0:00:37]}  Rc1 {[%clk 0:00:55]} 30. Kg2 {[%clk 0:00:32]}  d5 {[%clk 0:00:54]} 31. Rb6 {[%clk 0:00:31]}  Bf5 {[%clk 0:00:41]} 32. Bxa6 {[%clk 0:00:16]}  Be4+ {[%clk 0:00:41]} 33. Kh3 {[%clk 0:00:16]}  Rc2 {[%clk 0:00:40]} 34. Rd6 {[%clk 0:00:05]}  Rxf2 {[%clk 0:00:34]} 35. Bb7 {[%clk 0:00:05]}  Bg2+ {[%clk 0:00:29]} 36. Kh4 {[%clk 0:00:04]}  h5 {[%clk 0:00:20]} 37. g4 {[%clk 0:00:05]}  hxg4 {[%clk 0:00:17]} 38. Kg3 {[%clk 0:00:05]}  Rxa2 {[%clk 0:00:16]} 39. Kxg4 {[%clk 0:00:03]}  Be4 {[%clk 0:00:16]} 40. Kf4 {[%clk 0:00:02]}  Rxh2 {[%clk 0:00:14]} 41. Bxd5 {[%clk 0:00:02]}  Bxd5 {[%clk 0:00:11]} 42. Rxd5 {[%clk 0:00:02]}  Rh4+ {[%clk 0:00:11]} 43. Kg3 {[%clk 0:00:02]}  Rb4 {[%clk 0:00:11]} 44. Rd3 {[%clk 0:00:02]}  f5 {[%clk 0:00:12]} 45. Kf3 {[%clk 0:00:03]}  Kf6 {[%clk 0:00:12]} 46. Ke3 {[%clk 0:00:03]}  g5 {[%clk 0:00:12]} 47. Rc3 {[%clk 0:00:02]}  g4 {[%clk 0:00:13]} 48. Kd3 {[%clk 0:00:02]}  Kg5 {[%clk 0:00:12]} 49. Kc2 {[%clk 0:00:02]}  f4 {[%clk 0:00:12]} 50. Rc8 {[%clk 0:00:01]}  f3 {[%clk 0:00:12]} 51. Kc3 {[%clk 0:00:01]}  Rb7 {[%clk 0:00:12]} 0-1


[Site "https://www.chess.com"]

[Event "Titled Tuesday Blitz January 17 Early 2023"]
[White "Movahed, Sina"]
[Black "Korobov, Anton"]
[WhiteFideId "42520835"]
[BlackFideId "14105730"]
[WhiteElo "2340"]
[BlackElo "2664"]
[Result "0-1"]
[Round "09"]
[TimeControl "180+2"]
[Date "2023.01.17"]
[WhiteClock "0:00:10"]
[BlackClock "0:00:15"]

1. e4 {[%clk 0:02:40]}  c5 {[%clk 0:02:59]} 2. Nf3 {[%clk 0:02:39]}  d6 {[%clk 0:03:00]} 3. d4 {[%clk 0:02:38]}  cxd4 {[%clk 0:03:01]} 4. Nxd4 {[%clk 0:02:39]}  Nf6 {[%clk 0:03:01]} 5. Nc3 {[%clk 0:02:40]}  a6 {[%clk 0:03:02]} 6. Bg5 {[%clk 0:02:40]}  Nbd7 {[%clk 0:03:01]} 7. Bc4 {[%clk 0:02:40]}  Qb6 {[%clk 0:03:00]} 8. Bb3 {[%clk 0:02:40]}  e6 {[%clk 0:03:01]} 9. Qd2 {[%clk 0:02:40]}  Nc5 {[%clk 0:02:59]} 10. f3 {[%clk 0:02:39]}  Be7 {[%clk 0:02:57]} 11. O-O-O {[%clk 0:02:39]}  Qc7 {[%clk 0:02:57]} 12. g4 {[%clk 0:02:37]}  b5 {[%clk 0:02:56]} 13. Rhe1 {[%clk 0:02:35]}  Bd7 {[%clk 0:02:48]} 14. Bxf6 {[%clk 0:02:19]}  Bxf6 {[%clk 0:02:35]} 15. g5 {[%clk 0:02:14]}  Bd8 {[%clk 0:02:19]} 16. Nf5 {[%clk 0:01:42]}  exf5 {[%clk 0:02:11]} 17. exf5+ {[%clk 0:01:41]}  Kf8 {[%clk 0:02:11]} 18. Nd5 {[%clk 0:01:36]}  Nxb3+ {[%clk 0:02:09]} 19. axb3 {[%clk 0:01:35]}  Qa5 {[%clk 0:02:10]} 20. Qf4 {[%clk 0:01:33]}  Kg8 {[%clk 0:01:58]} 21. Qxd6 {[%clk 0:01:17]}  Bxg5+ {[%clk 0:01:52]} 22. f4 {[%clk 0:01:16]}  Bh4 {[%clk 0:01:47]} 23. Re5 {[%clk 0:00:48]}  Qa1+ {[%clk 0:01:01]} 24. Kd2 {[%clk 0:00:47]}  Qa5+ {[%clk 0:01:01]} 25. Ke2 {[%clk 0:00:40]}  Bxf5 {[%clk 0:00:46]} 26. Rxf5 {[%clk 0:00:36]}  h5 {[%clk 0:00:47]} 27. Re5 {[%clk 0:00:30]}  Rh6 {[%clk 0:00:45]} 28. Qd7 {[%clk 0:00:27]}  Rd8 {[%clk 0:00:35]} 29. Qf5 {[%clk 0:00:23]}  Qa2 {[%clk 0:00:19]} 30. Ne7+ {[%clk 0:00:20]}  Bxe7 {[%clk 0:00:19]} 31. Rxe7 {[%clk 0:00:20]}  Rf8 {[%clk 0:00:17]} 32. Rd8 {[%clk 0:00:18]}  Rf6 {[%clk 0:00:15]} 33. Rxf8+ {[%clk 0:00:11]}  Kxf8 {[%clk 0:00:16]} 34. Qe4 {[%clk 0:00:10]}  g6 {[%clk 0:00:16]} 35. Re8+ {[%clk 0:00:10]}  Kg7 {[%clk 0:00:16]} 36. Qe7 {[%clk 0:00:10]}  Re6+ {[%clk 0:00:15]} 0-1


[Site "https://www.chess.com"]

[Event "Titled Tuesday Blitz January 17 Early 2023"]
[White "Moroni, Luca Jr"]
[Black "Svane, Rasmus"]
[WhiteFideId "865834"]
[BlackFideId "4657101"]
[WhiteElo "2535"]
[BlackElo "2623"]
[Result "0-1"]
[Round "09"]
[TimeControl "180+2"]
[Date "2023.01.17"]
[WhiteClock "0:00:03"]
[BlackClock "0:00:07"]

1. d4 {[%clk 0:03:00]}  Nf6 {[%clk 0:02:58]} 2. Nf3 {[%clk 0:03:00]}  d5 {[%clk 0:02:58]} 3. Bf4 {[%clk 0:03:01]}  c5 {[%clk 0:02:58]} 4. e3 {[%clk 0:03:01]}  e6 {[%clk 0:02:56]} 5. Nbd2 {[%clk 0:02:59]}  Qb6 {[%clk 0:02:56]} 6. Rb1 {[%clk 0:02:57]}  Bd6 {[%clk 0:02:56]} 7. Bg3 {[%clk 0:02:29]}  O-O {[%clk 0:02:53]} 8. c3 {[%clk 0:02:28]}  Qc7 {[%clk 0:02:40]} 9. Bd3 {[%clk 0:02:28]}  Nbd7 {[%clk 0:02:39]} 10. Bh4 {[%clk 0:02:19]}  b6 {[%clk 0:02:35]} 11. O-O {[%clk 0:02:17]}  Bb7 {[%clk 0:02:35]} 12. Qe2 {[%clk 0:02:14]}  Ne4 {[%clk 0:02:30]} 13. Bg3 {[%clk 0:02:03]}  Nxg3 {[%clk 0:02:29]} 14. hxg3 {[%clk 0:02:04]}  e5 {[%clk 0:02:17]} 15. dxe5 {[%clk 0:02:02]}  Nxe5 {[%clk 0:02:18]} 16. Nxe5 {[%clk 0:02:02]}  Bxe5 {[%clk 0:02:19]} 17. c4 {[%clk 0:01:56]}  Rad8 {[%clk 0:02:14]} 18. cxd5 {[%clk 0:01:55]}  Bxd5 {[%clk 0:02:15]} 19. b3 {[%clk 0:01:51]}  g6 {[%clk 0:02:14]} 20. Be4 {[%clk 0:01:47]}  Be6 {[%clk 0:02:13]} 21. Rfd1 {[%clk 0:01:44]}  Bf6 {[%clk 0:02:06]} 22. Bf3 {[%clk 0:01:40]}  Bg7 {[%clk 0:01:55]} 23. Bg4 {[%clk 0:01:38]}  Bxg4 {[%clk 0:01:41]} 24. Qxg4 {[%clk 0:01:38]}  Qd7 {[%clk 0:01:37]} 25. Qf3 {[%clk 0:01:32]}  Qd5 {[%clk 0:01:31]} 26. Nc4 {[%clk 0:01:10]}  Qxf3 {[%clk 0:01:22]} 27. gxf3 {[%clk 0:01:11]}  h5 {[%clk 0:01:22]} 28. f4 {[%clk 0:01:09]}  Bf6 {[%clk 0:01:20]} 29. Kg2 {[%clk 0:01:09]}  Rfe8 {[%clk 0:01:20]} 30. Kf3 {[%clk 0:01:09]}  Kf8 {[%clk 0:01:19]} 31. Nd6 {[%clk 0:00:58]}  Re7 {[%clk 0:01:15]} 32. Ne4 {[%clk 0:00:57]}  Rxd1 {[%clk 0:01:10]} 33. Rxd1 {[%clk 0:00:58]}  Bb2 {[%clk 0:01:03]} 34. Rd8+ {[%clk 0:00:56]}  Re8 {[%clk 0:00:59]} 35. Rd7 {[%clk 0:00:55]}  Re7 {[%clk 0:01:00]} 36. Rd8+ {[%clk 0:00:53]}  Kg7 {[%clk 0:01:00]} 37. Nd6 {[%clk 0:00:48]}  Ba1 {[%clk 0:00:17]} 38. e4 {[%clk 0:00:47]}  Bd4 {[%clk 0:00:16]} 39. e5 {[%clk 0:00:46]}  a6 {[%clk 0:00:10]} 40. Ne8+ {[%clk 0:00:40]}  Kh6 {[%clk 0:00:08]} 41. Nf6 {[%clk 0:00:40]}  Rb7 {[%clk 0:00:05]} 42. Rh8+ {[%clk 0:00:28]}  Kg7 {[%clk 0:00:05]} 43. Rg8+ {[%clk 0:00:29]}  Kh6 {[%clk 0:00:05]} 44. g4 {[%clk 0:00:29]}  hxg4+ {[%clk 0:00:05]} 45. Nxg4+ {[%clk 0:00:27]}  Kh7 {[%clk 0:00:05]} 46. Nf6+ {[%clk 0:00:28]}  Kh6 {[%clk 0:00:05]} 47. Ke4 {[%clk 0:00:15]}  Bxf2 {[%clk 0:00:05]} 48. Ra8 {[%clk 0:00:14]}  Bd4 {[%clk 0:00:05]} 49. Rxa6 {[%clk 0:00:13]}  b5 {[%clk 0:00:05]} 50. Ra8 {[%clk 0:00:12]}  Bg1 {[%clk 0:00:04]} 51. Rh8+ {[%clk 0:00:12]}  Kg7 {[%clk 0:00:04]} 52. Rg8+ {[%clk 0:00:12]}  Kh6 {[%clk 0:00:05]} 53. f5 {[%clk 0:00:12]}  gxf5+ {[%clk 0:00:04]} 54. Kxf5 {[%clk 0:00:12]}  Bd4 {[%clk 0:00:05]} 55. Ng4+ {[%clk 0:00:12]}  Kh7 {[%clk 0:00:05]} 56. Nf6+ {[%clk 0:00:10]}  Kh6 {[%clk 0:00:06]} 57. Rg4 {[%clk 0:00:06]}  Ra7 {[%clk 0:00:04]} 58. Rg2 {[%clk 0:00:04]}  Rb7 {[%clk 0:00:03]} 59. Rh2+ {[%clk 0:00:03]}  Kg7 {[%clk 0:00:03]} 60. Rg2+ {[%clk 0:00:04]}  Kh6 {[%clk 0:00:04]} 61. Ne4 {[%clk 0:00:03]}  Re7 {[%clk 0:00:04]} 62. Ng5 {[%clk 0:00:02]}  Rxe5+ {[%clk 0:00:04]} 63. Kf6 {[%clk 0:00:02]}  Re2+ {[%clk 0:00:04]} 64. Kf5 {[%clk 0:00:01]}  Rxg2 {[%clk 0:00:05]} 65. Nxf7+ {[%clk 0:00:02]}  Kg7 {[%clk 0:00:05]} 66. Ng5 {[%clk 0:00:03]}  Rxg5+ {[%clk 0:00:05]} 67. Kxg5 {[%clk 0:00:03]}  Kf7 {[%clk 0:00:06]} 68. Kf5 {[%clk 0:00:03]}  b4 {[%clk 0:00:06]} 69. Ke4 {[%clk 0:00:03]}  Ke6 {[%clk 0:00:07]} 0-1


[Site "https://www.chess.com"]